[Event "Live Chess"]
[Site "Chess.com"]
[Date "2024.06.02"]
[Round "-"]
[White "Grace6363"]
[Black "TheSmoulderingMaster"]
[Result "0-1"]
[WhiteElo "1138"]
[BlackElo "1762"]
[TimeControl "300"]
[EndTime "7:11:12 PDT"]
[Termination "TheSmoulderingMaster won by resignation"]

1. d4 {[%clk 0:04:47]} 1... Nf6 {[%clk 0:04:58.3]} 2. c4 {[%clk 0:04:45.7]} 2...
d6 {[%clk 0:04:56.2]} 3. Nf3 {[%clk 0:04:44.5]} 3... g6 {[%clk 0:04:55.5]} 4.
Nc3 {[%clk 0:04:43.3]} 4... Bg7 {[%clk 0:04:54.6]} 5. Bg5 {[%clk 0:04:42.6]}
5... O-O {[%clk 0:04:53]} 6. e3 {[%clk 0:04:41.7]} 6... Bg4 {[%clk 0:04:50.5]}
7. Be2 {[%clk 0:04:41]} 7... c6 {[%clk 0:04:49.3]} 8. Nd2 {[%clk 0:04:38.8]}
8... Bxe2 {[%clk 0:04:46.8]} 9. Qxe2 {[%clk 0:04:38.2]} 9... Qa5 {[%clk
0:04:46.2]} 10. O-O {[%clk 0:04:32.7]} 10... Qxg5 {[%clk 0:04:44.4]} 11. f4
{[%clk 0:04:31.5]} 11... Qg4 {[%clk 0:04:42.1]} 12. Qxg4 {[%clk 0:04:26.8]}
12... Nxg4 {[%clk 0:04:40.8]} 13. Rf3 {[%clk 0:04:23.3]} 13... Nd7 {[%clk
0:04:38.8]} 14. Nde4 {[%clk 0:04:20.7]} 14... e5 {[%clk 0:04:34]} 15. f5 {[%clk
0:04:18.3]} 15... d5 {[%clk 0:04:29.3]} 16. Nd6 {[%clk 0:04:14.1]} 16... exd4
{[%clk 0:04:23.6]} 17. fxg6 {[%clk 0:04:07]} 17... dxc3 {[%clk 0:04:18.1]} 18.
gxf7+ {[%clk 0:04:04.2]} 18... Kh8 {[%clk 0:04:17.4]} 19. bxc3 {[%clk
0:04:00.7]} 19... Bxc3 {[%clk 0:04:14.3]} 20. Rc1 {[%clk 0:03:59.2]} 20... Bd2
{[%clk 0:04:11.4]} 21. Rcf1 {[%clk 0:03:51.8]} 21... Bxe3+ {[%clk 0:04:10]} 22.
Kh1 {[%clk 0:03:38.6]} 22... Bc5 {[%clk 0:04:07.5]} 23. Nf5 {[%clk 0:03:37]}
23... Nge5 {[%clk 0:04:04]} 24. Nh6 {[%clk 0:03:33.9]} 24... Ng6 {[%clk
0:03:49.8]} 25. Rf5 {[%clk 0:03:19.8]} 25... dxc4 {[%clk 0:03:45]} 26. Ng4
{[%clk 0:03:11.3]} 26... Bd4 {[%clk 0:03:38.9]} 27. Rc1 {[%clk 0:03:00.4]} 27...
c3 {[%clk 0:03:34.9]} 28. Nf2 {[%clk 0:02:54.4]} 28... Bxf2 {[%clk 0:03:32.3]}
29. Rxf2 {[%clk 0:02:53.6]} 29... Nde5 {[%clk 0:03:31.2]} 0-1

[Event "Live Chess"]
[Site "Chess.com"]
[Date "2024.06.02"]
[Round "-"]
[White "ShanthamGrarks"]
[Black "beltmanjb"]
[Result "1-0"]
[WhiteElo "1933"]
[BlackElo "1685"]
[TimeControl "300"]
[EndTime "7:11:56 PDT"]
[Termination "ShanthamGrarks won on time"]

1. d4 {[%clk 0:04:53.4]} 1... Nf6 {[%clk 0:04:58.2]} 2. Nc3 {[%clk 0:04:50.5]}
2... d5 {[%clk 0:04:54.9]} 3. Bf4 {[%clk 0:04:47.5]} 3... a6 {[%clk 0:04:54]} 4.
e3 {[%clk 0:04:42.4]} 4... e6 {[%clk 0:04:34.1]} 5. Nf3 {[%clk 0:04:39]} 5... c5
{[%clk 0:04:26.1]} 6. Bd3 {[%clk 0:04:35.7]} 6... Nbd7 {[%clk 0:04:22.9]} 7. Qd2
{[%clk 0:04:27.7]} 7... b5 {[%clk 0:04:20.6]} 8. Ne5 {[%clk 0:04:13.2]} 8... Bb7
{[%clk 0:04:14.7]} 9. O-O {[%clk 0:03:56]} 9... Be7 {[%clk 0:04:06.8]} 10. h3
{[%clk 0:03:51.4]} 10... Rc8 {[%clk 0:04:00.6]} 11. Rae1 {[%clk 0:03:38.5]}
11... O-O {[%clk 0:03:57.7]} 12. Ng4 {[%clk 0:03:25.2]} 12... c4 {[%clk
0:03:14.6]} 13. Be2 {[%clk 0:03:22.4]} 13... b4 {[%clk 0:03:10.1]} 14. Nb1
{[%clk 0:03:19.4]} 14... Ne4 {[%clk 0:03:06.6]} 15. Qd1 {[%clk 0:03:18.2]} 15...
a5 {[%clk 0:02:52.8]} 16. f3 {[%clk 0:03:16]} 16... Nef6 {[%clk 0:02:48.8]} 17.
c3 {[%clk 0:03:07.6]} 17... Nh5 {[%clk 0:02:34.8]} 18. Bh2 {[%clk 0:03:04.7]}
18... Bh4 {[%clk 0:02:28.4]} 19. Nf2 {[%clk 0:03:03]} 19... Ng3 {[%clk
0:02:20.8]} 20. Bxg3 {[%clk 0:02:58.1]} 20... Bxg3 {[%clk 0:02:20.3]} 21. f4
{[%clk 0:02:46.2]} 21... Nf6 {[%clk 0:02:06.3]} 22. Bf3 {[%clk 0:02:42.6]} 22...
Qb6 {[%clk 0:01:41.4]} 23. Re2 {[%clk 0:02:40.5]} 23... h5 {[%clk 0:01:23.1]}
24. Nh1 {[%clk 0:02:36.6]} 24... Bh4 {[%clk 0:01:19.8]} 25. g3 {[%clk
0:02:35.3]} 25... Ne4 {[%clk 0:00:34.9]} 26. Bxe4 {[%clk 0:02:31.5]} 26... dxe4
{[%clk 0:00:32.7]} 27. gxh4 {[%clk 0:02:29.8]} 27... Qd8 {[%clk 0:00:11]} 28.
Qe1 {[%clk 0:02:20.7]} 28... Qf6 {[%clk 0:00:07.7]} 29. Rg2 {[%clk 0:02:18.6]}
1-0

[Event "Live Chess"]
[Site "Chess.com"]
[Date "2024.06.02"]
[Round "-"]
[White "wadsy27"]
[Black "agamilewska"]
[Result "1-0"]
[WhiteElo "2593"]
[BlackElo "1742"]
[TimeControl "300"]
[EndTime "7:12:29 PDT"]
[Termination "wadsy27 won by resignation"]

1. d4 {[%clk 0:04:57.6]} 1... d5 {[%clk 0:04:58.3]} 2. Nf3 {[%clk 0:04:57.1]}
2... Nf6 {[%clk 0:04:57.2]} 3. Bf4 {[%clk 0:04:56.7]} 3... e6 {[%clk 0:04:55.9]}
4. e3 {[%clk 0:04:56.3]} 4... c5 {[%clk 0:04:55.1]} 5. c3 {[%clk 0:04:54.7]}
5... Nc6 {[%clk 0:04:53.7]} 6. Nbd2 {[%clk 0:04:51.8]} 6... cxd4 {[%clk
0:04:50.3]} 7. exd4 {[%clk 0:04:50.6]} 7... Bd6 {[%clk 0:04:49]} 8. Bxd6 {[%clk
0:04:48.7]} 8... Qxd6 {[%clk 0:04:48.9]} 9. Bd3 {[%clk 0:04:47.9]} 9... O-O
{[%clk 0:04:47.7]} 10. O-O {[%clk 0:04:46.7]} 10... h6 {[%clk 0:04:46.7]} 11.
Qe2 {[%clk 0:04:45.3]} 11... Re8 {[%clk 0:04:46]} 12. Rae1 {[%clk 0:04:44.1]}
12... b6 {[%clk 0:04:40.2]} 13. Ne5 {[%clk 0:04:42.8]} 13... Bb7 {[%clk
0:04:37.8]} 14. f4 {[%clk 0:04:39.5]} 14... Ne7 {[%clk 0:04:15.8]} 15. g4 {[%clk
0:04:35.2]} 15... Nd7 {[%clk 0:03:46.9]} 16. Ndf3 {[%clk 0:04:24.9]} 16... Nxe5
{[%clk 0:03:43.6]} 17. fxe5 {[%clk 0:04:22.6]} 17... Qd7 {[%clk 0:03:36.4]} 18.
g5 {[%clk 0:04:21.5]} 18... hxg5 {[%clk 0:03:32.9]} 19. Nxg5 {[%clk 0:04:19.3]}
19... Nf5 {[%clk 0:03:29.1]} 20. Qh5 {[%clk 0:04:14.2]} 20... Kf8 {[%clk
0:03:08.5]} 21. Bxf5 {[%clk 0:04:01.2]} 21... exf5 {[%clk 0:03:04.5]} 22. Nxf7
{[%clk 0:04:00.7]} 22... Ke7 {[%clk 0:02:47.5]} 23. e6 {[%clk 0:03:53.4]} 23...
Qc7 {[%clk 0:02:42]} 24. Qg5+ {[%clk 0:03:45.1]} 24... Kf8 {[%clk 0:02:40.5]}
25. Rxf5 {[%clk 0:03:44.6]} 1-0

[Event "Live Chess"]
[Site "Chess.com"]
[Date "2024.06.02"]
[Round "-"]
[White "Colm_Buckley"]
[Black "V1nas"]
[Result "1-0"]
[WhiteElo "1875"]
[BlackElo "1313"]
[TimeControl "300"]
[EndTime "7:12:33 PDT"]
[Termination "Colm_Buckley won by resignation"]

1. d4 {[%clk 0:04:57.7]} 1... d5 {[%clk 0:04:57.9]} 2. c4 {[%clk 0:04:56.6]}
2... e6 {[%clk 0:04:54.4]} 3. Nc3 {[%clk 0:04:55.7]} 3... Nf6 {[%clk 0:04:53.9]}
4. Nf3 {[%clk 0:04:54.8]} 4... Be7 {[%clk 0:04:52.9]} 5. Bf4 {[%clk 0:04:53.6]}
5... a6 {[%clk 0:04:47.5]} 6. e3 {[%clk 0:04:52.3]} 6... O-O {[%clk 0:04:45.3]}
7. Rc1 {[%clk 0:04:48.4]} 7... c5 {[%clk 0:04:31.2]} 8. dxc5 {[%clk 0:04:42.6]}
8... Bxc5 {[%clk 0:04:28.8]} 9. a3 {[%clk 0:04:38.6]} 9... Bd6 {[%clk
0:04:10.6]} 10. Bg5 {[%clk 0:04:28.2]} 10... h6 {[%clk 0:04:06.1]} 11. Bh4
{[%clk 0:04:26.7]} 11... Nbd7 {[%clk 0:04:01.9]} 12. cxd5 {[%clk 0:04:24.5]}
12... exd5 {[%clk 0:03:58.7]} 13. Nxd5 {[%clk 0:04:13]} 13... Qa5+ {[%clk
0:03:57.6]} 14. Nc3 {[%clk 0:04:11.5]} 14... Ne4 {[%clk 0:03:54.4]} 15. Bd3
{[%clk 0:03:57.3]} 15... Nxc3 {[%clk 0:03:50.6]} 16. Rxc3 {[%clk 0:03:55.7]}
16... Ne5 {[%clk 0:03:16.5]} 17. b4 {[%clk 0:03:37.7]} 17... Nxd3+ {[%clk
0:03:06.6]} 18. Rxd3 {[%clk 0:03:32.1]} 18... Bxb4+ {[%clk 0:02:13.9]} 19. axb4
{[%clk 0:03:28.5]} 19... Qxb4+ {[%clk 0:02:13.8]} 20. Rd2 {[%clk 0:03:22.7]}
20... Bg4 {[%clk 0:02:11.3]} 21. Bg3 {[%clk 0:03:03.5]} 21... Rfd8 {[%clk
0:02:05.1]} 22. O-O {[%clk 0:02:49]} 22... Rxd2 {[%clk 0:01:42.1]} 23. Qxd2
{[%clk 0:02:27.8]} 23... Qe4 {[%clk 0:01:28.9]} 24. Nd4 {[%clk 0:02:11]} 24...
Rd8 {[%clk 0:01:24.1]} 25. f3 {[%clk 0:02:06]} 25... Rxd4 {[%clk 0:01:08.5]} 26.
exd4 {[%clk 0:01:52.9]} 1-0

[Event "Live Chess"]
[Site "Chess.com"]
[Date "2024.06.02"]
[Round "-"]
[White "JoeyCage"]
[Black "lateforthesky"]
[Result "1-0"]
[WhiteElo "2400"]
[BlackElo "2072"]
[TimeControl "300"]
[EndTime "7:12:56 PDT"]
[Termination "JoeyCage won on time"]

1. e3 {[%clk 0:04:56.6]} 1... d5 {[%clk 0:04:53.1]} 2. d4 {[%clk 0:04:55.3]}
2... e6 {[%clk 0:04:48.2]} 3. Nf3 {[%clk 0:04:53.3]} 3... Nf6 {[%clk 0:04:45.9]}
4. c4 {[%clk 0:04:49.2]} 4... c5 {[%clk 0:04:44.1]} 5. Nc3 {[%clk 0:04:46.5]}
5... Nc6 {[%clk 0:04:42]} 6. Be2 {[%clk 0:04:42.4]} 6... dxc4 {[%clk 0:04:40]}
7. Bxc4 {[%clk 0:04:41]} 7... cxd4 {[%clk 0:04:38.4]} 8. exd4 {[%clk 0:04:40.2]}
8... Be7 {[%clk 0:04:37]} 9. O-O {[%clk 0:04:38.6]} 9... O-O {[%clk 0:04:34.3]}
10. a3 {[%clk 0:04:35.8]} 10... a6 {[%clk 0:04:30.4]} 11. Bf4 {[%clk 0:04:31.6]}
11... b5 {[%clk 0:04:27.3]} 12. Ba2 {[%clk 0:04:27.3]} 12... Bb7 {[%clk
0:04:23.4]} 13. h3 {[%clk 0:04:25.6]} 13... Rc8 {[%clk 0:04:13.1]} 14. Qd3
{[%clk 0:04:21.7]} 14... Na5 {[%clk 0:03:53.3]} 15. Rad1 {[%clk 0:04:13.7]}
15... Nc4 {[%clk 0:03:48.7]} 16. Qe2 {[%clk 0:04:12.3]} 16... Nd5 {[%clk
0:03:43.3]} 17. Bg3 {[%clk 0:04:05.2]} 17... Nxc3 {[%clk 0:03:40.5]} 18. bxc3
{[%clk 0:04:03.2]} 18... Bf6 {[%clk 0:03:28.6]} 19. Bxc4 {[%clk 0:03:58.5]}
19... Rxc4 {[%clk 0:03:26.3]} 20. Ne5 {[%clk 0:03:57.4]} 20... Bxe5 {[%clk
0:03:19.8]} 21. Bxe5 {[%clk 0:03:52.3]} 21... Qd5 {[%clk 0:03:16.2]} 22. Qg4
{[%clk 0:03:48]} 22... f6 {[%clk 0:03:14.7]} 23. Bh2 {[%clk 0:03:41]} 23... Rxc3
{[%clk 0:02:50.7]} 24. Rfe1 {[%clk 0:03:39]} 24... Re8 {[%clk 0:02:45.5]} 25.
Re3 {[%clk 0:03:29.3]} 25... Rxe3 {[%clk 0:02:37.1]} 26. fxe3 {[%clk 0:03:27.3]}
26... Rd8 {[%clk 0:02:27]} 27. Rc1 {[%clk 0:03:21.4]} 27... Rc8 {[%clk
0:01:49.4]} 28. Rxc8+ {[%clk 0:03:18.7]} 28... Bxc8 {[%clk 0:01:48]} 29. Qf3
{[%clk 0:03:17.9]} 29... Qxf3 {[%clk 0:01:39.6]} 30. gxf3 {[%clk 0:03:16.5]}
30... Kf7 {[%clk 0:01:36.2]} 31. Kf2 {[%clk 0:03:13.1]} 31... Ke7 {[%clk
0:01:31.2]} 32. Ke2 {[%clk 0:03:10.5]} 32... Bb7 {[%clk 0:01:16.4]} 33. h4
{[%clk 0:03:04.9]} 33... h5 {[%clk 0:01:13.1]} 34. Bb8 {[%clk 0:02:59.9]} 34...
g5 {[%clk 0:01:08.9]} 35. Bg3 {[%clk 0:02:49.2]} 35... Bd5 {[%clk 0:01:01.2]}
36. e4 {[%clk 0:02:45.6]} 36... Bc4+ {[%clk 0:00:59.3]} 37. Kd2 {[%clk
0:02:44.2]} 37... gxh4 {[%clk 0:00:54.5]} 38. Bxh4 {[%clk 0:02:42.8]} 38... Kf7
{[%clk 0:00:53.8]} 39. Ke3 {[%clk 0:02:39.1]} 39... Kg6 {[%clk 0:00:52.7]} 40.
Kf4 {[%clk 0:02:33.4]} 40... Be2 {[%clk 0:00:48.7]} 41. Be1 {[%clk 0:02:28.5]}
41... Bd1 {[%clk 0:00:47.3]} 42. Kg3 {[%clk 0:02:21.6]} 42... e5 {[%clk
0:00:42.7]} 43. dxe5 {[%clk 0:02:16.7]} 43... fxe5 {[%clk 0:00:41.3]} 44. Bc3
{[%clk 0:02:14.9]} 44... Kf6 {[%clk 0:00:19.2]} 45. f4 {[%clk 0:02:09.5]} 45...
Ke6 {[%clk 0:00:18.4]} 46. Bxe5 {[%clk 0:02:06.6]} 46... a5 {[%clk 0:00:17.6]}
47. Bc3 {[%clk 0:02:05.1]} 47... a4 {[%clk 0:00:16.1]} 48. f5+ {[%clk
0:02:04.1]} 48... Ke7 {[%clk 0:00:14.5]} 49. e5 {[%clk 0:02:01.1]} 49... Bg4
{[%clk 0:00:12.4]} 50. Kf4 {[%clk 0:01:59.7]} 50... Bh3 {[%clk 0:00:10.5]} 51.
Bb4+ {[%clk 0:01:58.9]} 51... Kf7 {[%clk 0:00:09.3]} 52. e6+ {[%clk 0:01:57.9]}
52... Kf6 {[%clk 0:00:07.3]} 53. Bc3+ {[%clk 0:01:56.6]} 53... Ke7 {[%clk
0:00:06.1]} 54. Ke5 {[%clk 0:01:55.6]} 54... Bxf5 {[%clk 0:00:04.3]} 55. Kxf5
{[%clk 0:01:54.3]} 55... h4 {[%clk 0:00:03.7]} 56. Kg4 {[%clk 0:01:53.1]} 56...
Kxe6 {[%clk 0:00:02.3]} 57. Kxh4 {[%clk 0:01:52.3]} 57... Kd7 {[%clk 0:00:01.7]}
58. Bb4 {[%clk 0:01:52.2]} 58... Kc8 {[%clk 0:00:01]} 59. Kg4 {[%clk 0:01:52.1]}
59... Kb7 {[%clk 0:00:00.5]} 60. Kf4 {[%clk 0:01:52]} 1-0

[Event "Live Chess"]
[Site "Chess.com"]
[Date "2024.06.02"]
[Round "-"]
[White "Nazar-Makarchuk"]
[Black "McCarthyStone"]
[Result "0-1"]
[WhiteElo "1475"]
[BlackElo "2455"]
[TimeControl "300"]
[EndTime "7:13:09 PDT"]
[Termination "McCarthyStone won by resignation"]

1. e4 {[%clk 0:04:57.7]} 1... e5 {[%clk 0:04:58]} 2. Nf3 {[%clk 0:04:57.3]} 2...
d6 {[%clk 0:04:56.8]} 3. d4 {[%clk 0:04:56.1]} 3... exd4 {[%clk 0:04:56.7]} 4.
Qxd4 {[%clk 0:04:54.9]} 4... Nc6 {[%clk 0:04:54.8]} 5. Bb5 {[%clk 0:04:52.7]}
5... Bd7 {[%clk 0:04:54.4]} 6. Bxc6 {[%clk 0:04:52.2]} 6... bxc6 {[%clk
0:04:53.1]} 7. O-O {[%clk 0:04:51.6]} 7... Nf6 {[%clk 0:04:52.4]} 8. e5 {[%clk
0:04:51]} 8... dxe5 {[%clk 0:04:36.9]} 9. Nxe5 {[%clk 0:04:49]} 9... Bd6 {[%clk
0:04:35.5]} 10. Nxd7 {[%clk 0:04:47.9]} 10... Qxd7 {[%clk 0:04:31.5]} 11. Re1+
{[%clk 0:04:46]} 11... Kf8 {[%clk 0:04:26.3]} 12. g3 {[%clk 0:04:45.3]} 12...
Re8 {[%clk 0:04:20.4]} 13. Rxe8+ {[%clk 0:04:42]} 13... Qxe8 {[%clk 0:04:20.3]}
14. Qe3 {[%clk 0:04:40.3]} 14... Qxe3 {[%clk 0:04:17.6]} 15. Bxe3 {[%clk
0:04:39.8]} 15... a6 {[%clk 0:04:15.6]} 16. Nc3 {[%clk 0:04:39.3]} 16... Ke7
{[%clk 0:04:14.8]} 17. Bg5 {[%clk 0:04:37.4]} 17... Kd7 {[%clk 0:04:10.7]} 18.
Bxf6 {[%clk 0:04:35.3]} 18... gxf6 {[%clk 0:04:10.6]} 19. Ne4 {[%clk 0:04:34.8]}
19... f5 {[%clk 0:03:51.2]} 20. Nxd6 {[%clk 0:04:27.8]} 20... cxd6 {[%clk
0:03:50.4]} 21. Rd1 {[%clk 0:04:25.8]} 21... Re8 {[%clk 0:03:47.9]} 22. Rd3
{[%clk 0:04:24.8]} 22... Re2 {[%clk 0:03:44.8]} 23. Rc3 {[%clk 0:04:19.8]} 23...
Re4 {[%clk 0:03:37.7]} 24. Kg2 {[%clk 0:04:18.5]} 24... a5 {[%clk 0:03:34.9]}
25. Kf3 {[%clk 0:04:17.7]} 25... Rb4 {[%clk 0:03:31.7]} 26. b3 {[%clk
0:04:16.4]} 26... d5 {[%clk 0:03:22.2]} 27. a3 {[%clk 0:04:15.7]} 27... Re4
{[%clk 0:03:14.3]} 28. Rd3 {[%clk 0:04:12.7]} 28... Ke6 {[%clk 0:03:10.8]} 29.
Re3 {[%clk 0:04:09.1]} 29... Ke5 {[%clk 0:03:06]} 30. Rxe4+ {[%clk 0:04:08.2]}
30... fxe4+ {[%clk 0:03:05.9]} 31. Ke3 {[%clk 0:04:07.7]} 31... d4+ {[%clk
0:03:04.9]} 32. Ke2 {[%clk 0:04:06.2]} 32... c5 {[%clk 0:03:00.5]} 33. f3 {[%clk
0:04:05.1]} 33... e3 {[%clk 0:02:58.9]} 34. h3 {[%clk 0:03:59.6]} 34... Kd5
{[%clk 0:02:53.5]} 35. Kd3 {[%clk 0:03:56.5]} 35... Ke5 {[%clk 0:02:17.8]} 36.
c3 {[%clk 0:03:54]} 36... Kd5 {[%clk 0:02:08.6]} 37. b4 {[%clk 0:03:51.1]} 37...
axb4 {[%clk 0:00:51.3]} 38. axb4 {[%clk 0:03:43.4]} 38... cxb4 {[%clk
0:00:50.5]} 39. cxb4 {[%clk 0:03:42.1]} 39... Kc6 {[%clk 0:00:50.3]} 40. g4
{[%clk 0:03:35.8]} 40... Kb5 {[%clk 0:00:49.4]} 41. f4 {[%clk 0:03:35.4]} 41...
Kxb4 {[%clk 0:00:48.9]} 42. h4 {[%clk 0:03:34]} 42... Kc5 {[%clk 0:00:48.4]} 43.
g5 {[%clk 0:03:32.9]} 43... Kd5 {[%clk 0:00:47.8]} 44. h5 {[%clk 0:03:30.9]}
44... Ke6 {[%clk 0:00:46.9]} 45. Ke2 {[%clk 0:03:27.7]} 45... Kf5 {[%clk
0:00:46.2]} 46. Kf3 {[%clk 0:03:27.3]} 46... e2 {[%clk 0:00:32.3]} 47. Kxe2
{[%clk 0:03:24.2]} 47... Kxf4 {[%clk 0:00:31.6]} 48. g6 {[%clk 0:03:23.5]} 48...
fxg6 {[%clk 0:00:30.9]} 49. hxg6 {[%clk 0:03:23]} 49... hxg6 {[%clk 0:00:30.3]}
50. Kd3 {[%clk 0:03:22.7]} 50... Ke5 {[%clk 0:00:29.2]} 51. Ke2 {[%clk 0:03:22]}
51... Ke4 {[%clk 0:00:29.1]} 52. Kf2 {[%clk 0:03:21.3]} 52... g5 {[%clk
0:00:29]} 53. Kg3 {[%clk 0:03:20.8]} 53... d3 {[%clk 0:00:28.8]} 54. Kg4 {[%clk
0:03:20.4]} 54... d2 {[%clk 0:00:28.4]} 55. Kxg5 {[%clk 0:03:20]} 55... d1=Q
{[%clk 0:00:28.3]} 56. Kf6 {[%clk 0:03:19.5]} 56... Qd5 {[%clk 0:00:27.3]} 57.
Ke7 {[%clk 0:03:18.4]} 57... Qc6 {[%clk 0:00:26.7]} 58. Kf7 {[%clk 0:03:17.6]}
58... Kf5 {[%clk 0:00:26.1]} 59. Ke7 {[%clk 0:03:16.7]} 59... Qe6+ {[%clk
0:00:25.4]} 60. Kd8 {[%clk 0:03:16]} 60... Qf7 {[%clk 0:00:24.7]} 61. Kc8 {[%clk
0:03:14.9]} 61... Ke6 {[%clk 0:00:24.6]} 62. Kb8 {[%clk 0:03:13.9]} 62... Kd6
{[%clk 0:00:24.5]} 63. Ka8 {[%clk 0:03:12.9]} 63... Kc6 {[%clk 0:00:24.1]} 0-1

[Event "Live Chess"]
[Site "Chess.com"]
[Date "2024.06.02"]
[Round "-"]
[White "TheSmoulderingMaster"]
[Black "NeilDruggan73"]
[Result "1-0"]
[WhiteElo "1769"]
[BlackElo "1705"]
[TimeControl "300"]
[EndTime "7:13:12 PDT"]
[Termination "TheSmoulderingMaster won by checkmate"]

1. e4 {[%clk 0:04:57.4]} 1... d6 {[%clk 0:04:58.8]} 2. d4 {[%clk 0:04:55.8]}
2... Nf6 {[%clk 0:04:58.3]} 3. Nc3 {[%clk 0:04:54.9]} 3... g6 {[%clk 0:04:57.3]}
4. Bf4 {[%clk 0:04:53.5]} 4... Bg7 {[%clk 0:04:56.6]} 5. Nf3 {[%clk 0:04:52.5]}
5... c6 {[%clk 0:04:54.1]} 6. Qd2 {[%clk 0:04:50.8]} 6... b5 {[%clk 0:04:49.8]}
7. O-O-O {[%clk 0:04:48.8]} 7... Qa5 {[%clk 0:04:48.4]} 8. Kb1 {[%clk
0:04:46.4]} 8... Nbd7 {[%clk 0:04:45]} 9. e5 {[%clk 0:04:45.6]} 9... dxe5 {[%clk
0:04:41.8]} 10. dxe5 {[%clk 0:04:44.8]} 10... Nd5 {[%clk 0:04:31.8]} 11. Nxd5
{[%clk 0:04:32.6]} 11... Qxd2 {[%clk 0:04:30.1]} 12. Nc7+ {[%clk 0:04:31.5]}
12... Kf8 {[%clk 0:04:27.7]} 13. Rxd2 {[%clk 0:04:29.8]} 13... Rb8 {[%clk
0:04:26.6]} 14. Ng5 {[%clk 0:04:26.9]} 14... Rb7 {[%clk 0:04:23.8]} 15. e6
{[%clk 0:04:24.9]} 15... Ne5 {[%clk 0:04:09.9]} 16. Rd8# {[%clk 0:04:17.9]} 1-0

[Event "Live Chess"]
[Site "Chess.com"]
[Date "2024.06.02"]
[Round "-"]
[White "gobbles19"]
[Black "silunn"]
[Result "1-0"]
[WhiteElo "2206"]
[BlackElo "2103"]
[TimeControl "300"]
[EndTime "7:13:32 PDT"]
[Termination "gobbles19 won by resignation"]

1. e4 {[%clk 0:04:57.7]} 1... e6 {[%clk 0:04:59.9]} 2. d4 {[%clk 0:04:56.7]}
2... d5 {[%clk 0:04:59.5]} 3. Nc3 {[%clk 0:04:56.4]} 3... Nf6 {[%clk 0:04:58.8]}
4. Bg5 {[%clk 0:04:54.9]} 4... Be7 {[%clk 0:04:57.8]} 5. e5 {[%clk 0:04:51.9]}
5... Nfd7 {[%clk 0:04:57.2]} 6. h4 {[%clk 0:04:51.3]} 6... Nc6 {[%clk
0:04:47.5]} 7. Bxe7 {[%clk 0:04:45.7]} 7... Qxe7 {[%clk 0:04:46.4]} 8. Nb5
{[%clk 0:04:43.8]} 8... Nb6 {[%clk 0:04:45.5]} 9. Qg4 {[%clk 0:04:37.6]} 9...
Kf8 {[%clk 0:04:43.2]} 10. Nf3 {[%clk 0:04:35.7]} 10... h5 {[%clk 0:04:32.7]}
11. Qf4 {[%clk 0:04:32.8]} 11... a6 {[%clk 0:04:27.2]} 12. Nc3 {[%clk
0:04:29.3]} 12... Bd7 {[%clk 0:04:25.5]} 13. Bd3 {[%clk 0:04:26.9]} 13... Kg8
{[%clk 0:04:15.3]} 14. a3 {[%clk 0:04:19.6]} 14... Nc4 {[%clk 0:04:12.2]} 15.
Bxc4 {[%clk 0:04:18.6]} 15... dxc4 {[%clk 0:04:11.5]} 16. Rd1 {[%clk 0:04:12.3]}
16... Na5 {[%clk 0:03:59.3]} 17. d5 {[%clk 0:04:04.4]} 17... Qc5 {[%clk
0:03:56.8]} 18. O-O {[%clk 0:03:58.9]} 18... b5 {[%clk 0:03:39.5]} 19. Ne4
{[%clk 0:03:53.7]} 19... Qb6 {[%clk 0:03:23.1]} 20. d6 {[%clk 0:03:24.2]} 20...
c5 {[%clk 0:03:20.5]} 21. Nfg5 {[%clk 0:03:17.4]} 21... Be8 {[%clk 0:03:15.1]}
22. d7 {[%clk 0:03:15.5]} 1-0

[Event "Live Chess"]
[Site "Chess.com"]
[Date "2024.06.02"]
[Round "-"]
[White "PureDashingOctopus"]
[Black "FlyingChessKestrel13"]
[Result "1-0"]
[WhiteElo "2289"]
[BlackElo "2063"]
[TimeControl "300"]
[EndTime "7:13:53 PDT"]
[Termination "PureDashingOctopus won by resignation"]

1. e4 {[%clk 0:04:57.9]} 1... c5 {[%clk 0:04:57.4]} 2. Nc3 {[%clk 0:04:55.6]}
2... Nc6 {[%clk 0:04:56.8]} 3. Nf3 {[%clk 0:04:53]} 3... e6 {[%clk 0:04:56.4]}
4. d4 {[%clk 0:04:48.8]} 4... cxd4 {[%clk 0:04:55.2]} 5. Nxd4 {[%clk 0:04:48.6]}
5... a6 {[%clk 0:04:53.4]} 6. Be3 {[%clk 0:04:46.6]} 6... Nf6 {[%clk 0:04:51.9]}
7. g4 {[%clk 0:04:42.6]} 7... Bb4 {[%clk 0:04:49.4]} 8. f3 {[%clk 0:04:40.7]}
8... O-O {[%clk 0:04:45.2]} 9. g5 {[%clk 0:04:39.6]} 9... Nh5 {[%clk 0:04:43.5]}
10. Qd2 {[%clk 0:04:36.1]} 10... g6 {[%clk 0:04:41.6]} 11. O-O-O {[%clk
0:04:34]} 11... Qa5 {[%clk 0:04:37.7]} 12. Nxc6 {[%clk 0:04:25.9]} 12... bxc6
{[%clk 0:04:36.2]} 13. Bd4 {[%clk 0:04:20.6]} 13... e5 {[%clk 0:04:33.6]} 14.
Be3 {[%clk 0:04:14.7]} 14... Bxc3 {[%clk 0:04:31.6]} 15. Qxc3 {[%clk 0:04:12.9]}
15... Qxa2 {[%clk 0:04:31]} 16. Qxe5 {[%clk 0:04:09.1]} 16... a5 {[%clk
0:04:22.7]} 17. Bd4 {[%clk 0:04:05.2]} 17... f6 {[%clk 0:04:21.9]} 18. gxf6
{[%clk 0:04:03.9]} 18... Nxf6 {[%clk 0:04:14.6]} 19. Bc5 {[%clk 0:03:50.5]}
19... Rf7 {[%clk 0:04:10.9]} 20. b3 {[%clk 0:03:33]} 20... a4 {[%clk 0:04:05.8]}
21. Bc4 {[%clk 0:03:29.7]} 21... axb3 {[%clk 0:04:03.4]} 22. Bxf7+ {[%clk
0:03:28.3]} 22... Kxf7 {[%clk 0:04:02]} 23. Qe7+ {[%clk 0:03:27.4]} 1-0

[Event "Live Chess"]
[Site "Chess.com"]
[Date "2024.06.02"]
[Round "-"]
[White "Frankie_Badacsonyi"]
[Black "Colm_Buckley"]
[Result "1-0"]
[WhiteElo "2387"]
[BlackElo "1874"]
[TimeControl "300"]
[EndTime "7:13:53 PDT"]
[Termination "Frankie_Badacsonyi won by resignation"]

1. Nf3 {[%clk 0:04:57.9]} 1... Nf6 {[%clk 0:04:57.3]} 2. b3 {[%clk 0:04:57]}
2... d5 {[%clk 0:04:54.7]} 3. Bb2 {[%clk 0:04:56.4]} 3... c5 {[%clk 0:04:53.8]}
4. e3 {[%clk 0:04:55.9]} 4... Nc6 {[%clk 0:04:52.9]} 5. Bb5 {[%clk 0:04:55.3]}
5... a6 {[%clk 0:04:49.8]} 6. Bxc6+ {[%clk 0:04:54.3]} 6... bxc6 {[%clk
0:04:48.5]} 7. d3 {[%clk 0:04:54]} 7... Bf5 {[%clk 0:04:47.4]} 8. O-O {[%clk
0:04:52.9]} 8... e6 {[%clk 0:04:46.4]} 9. Nbd2 {[%clk 0:04:52.3]} 9... Bd6
{[%clk 0:04:44]} 10. Qe2 {[%clk 0:04:51.6]} 10... Qc7 {[%clk 0:04:42.5]} 11. e4
{[%clk 0:04:49.8]} 11... dxe4 {[%clk 0:04:38.3]} 12. dxe4 {[%clk 0:04:49.7]}
12... Bg4 {[%clk 0:04:28.9]} 13. e5 {[%clk 0:04:48.2]} 13... Bxf3 {[%clk
0:04:25.7]} 14. Nxf3 {[%clk 0:04:48.1]} 1-0